bitfinex/quotes_SOLUSD_20240918
["timestamp","ask_amount","ask_price","bid_price","bid_amount"]
[1726668150572,27.8702035,128.78,128.74,7.7675]
[1726668150767,20.1048035,128.78,128.73,0.12549]
[1726668151181,7.7659,128.77,128.73,0.12549]
[1726668151386,27.8704035,128.78,128.73,7.89319]
[1726668151888,0.1048035,128.78,128.74,0.25098]
[1726668152073,0.1048035,128.78,128.76,7.7658]
[1726668152273,0.1048035,128.78,128.75,27.1828]
[1726668155703,7.7657,128.77,128.74,0.12549]
[1726668156082,0.1048035,128.78,128.74,19.4186]
[1726668156404,0.1048035,128.78,128.75,7.7669]
[1726668157199,7.8700035,128.78,128.74,27.1859]
[1726668157394,0.1048035,128.78,128.74,19.4186]
[1726668157603,7.7657,128.77,128.74,19.4186]
[1726668157800,7.8701035,128.78,128.74,27.186]
[1726668159209,7.7658,128.77,128.74,19.4186]
[1726668159504,7.8701035,128.78,128.74,27.186]
[1726668159797,7.8700035,128.78,128.74,27.1859]
[1726668160108,0.1048035,128.78,128.76,27.1818]
[1726668160406,0.1048035,128.78,128.76,19.4158]
[1726668160698,0.1048035,128.78,128.77,1.55304017]
[1726668160902,0.1048035,128.78,128.76,27.1819]
[1726668161279,0.1048035,128.78,128.74,20.12549]
[1726668161480,7.8701035,128.78,128.74,7.89269]
[1726668161805,7.8701035,128.78,128.75,7.7669]
[1726668161989,7.8701035,128.78,128.74,7.89289]
[1726668162183,0.1048035,128.78,128.75,7.7669]
[1726668162607,0.1048035,128.78,128.76,1.5530274]
[1726668162805,0.1048035,128.78,128.76,0.12549]
[1726668163399,0.1048035,128.78,128.76,7.89179]
[1726668163598,0.1048035,128.78,128.75,27.1838]
[1726668164407,0.1048035,128.78,128.76,7.7663]
[1726668164912,0.1048035,128.78,128.77,9.31874012]
[1726668165091,0.1048035,128.78,128.77,7.7657]
[1726668165415,0.1048035,128.78,128.76,0.12549]
[1726668165608,7.8703035,128.78,128.74,0.25098]
[1726668165788,0.1048035,128.78,128.75,7.7669]
[1726668166402,0.1048035,128.78,128.75,7.7668]
[1726668166629,0.1048035,128.78,128.76,19.4151]
[1726668167203,0.1048035,128.78,128.77,9.31864758]
[1726668167411,0.1048035,128.78,128.77,7.7657]
[1726668168216,0.1048035,128.78,128.77,9.44411384]
[1726668168391,0.1048035,128.78,128.77,7.89119]
[1726668170008,0.1048035,128.78,128.74,20.0]
[1726668170189,0.1048035,128.78,128.76,0.12549]
[1726668170390,0.1048035,128.78,128.75,27.1838]
[1726668170596,0.1048035,128.78,128.76,7.7663]
[1726668170917,0.1048035,128.78,128.77,7.7657]
[1726668172014,0.1048035,128.78,128.76,7.7663]
[1726668172392,0.1048035,128.78,128.75,27.1837]
[1726668173096,0.1048035,128.78,128.76,7.7663]
[1726668173910,0.1048035,128.78,128.75,19.417]
[1726668173911,0.1048035,128.78,128.77,7.7657]
[1726668174110,0.1048035,128.78,128.75,19.417]
[1726668174299,0.1048035,128.78,128.76,7.89169]
[1726668174504,0.1048035,128.78,128.75,27.1838]
[1726668174706,0.1048035,128.78,128.73,7.781]
[1726668175006,0.1048035,128.78,128.77,7.7657]
[1726668176317,0.1048035,128.78,128.77,7.89119]
[1726668176516,0.1048035,128.78,128.77,0.12549]
[1726668176723,0.1048035,128.78,128.76,19.4155]
[1726668177303,0.1048035,128.78,128.76,27.1816]
[1726668177805,0.1048035,128.78,128.77,7.7657]
[1726668178408,0.1048035,128.78,128.77,9.44399837]
[1726668178905,0.1048035,128.78,128.77,53.47186264]
[1726668179928,0.1048035,128.78,128.77,70.87035246]
[1726668180426,0.1048035,128.78,128.77,70.87001679]
[1726668180621,0.1048035,128.78,128.77,51.919054]
[1726668181664,0.1048035,128.78,128.77,53.47169398]
[1726668181799,0.1048035,128.78,128.77,29.69480998]
[1726668182007,0.1048035,128.78,128.77,7.89119]
[1726668182206,0.1048035,128.78,128.76,19.4155]
[1726668182513,0.1048035,128.78,128.77,7.7657]
[1726668183337,0.1048035,128.78,128.71,56.24348982]
[1726668183338,0.1048035,128.78,128.75,7.7667]
[1726668183537,0.1048035,128.78,128.77,7.7657]
[1726668184230,0.1048035,128.78,128.77,29.31839881]
[1726668184827,0.1048035,128.78,128.77,29.69486881]
[1726668185040,0.1048035,128.78,128.77,27.89119]
[1726668185204,0.1048035,128.78,128.77,7.7657]
[1726668185916,0.1048035,128.78,128.77,7.89119]
[1726668187623,0.1048035,128.78,128.77,31.919054]
[1726668190133,0.1048035,128.78,128.77,51.919054]
[1726668190636,0.1048035,128.78,128.77,53.47161712]
[1726668192529,0.248373,128.82,128.81,27.1717]
[1726668192836,0.248373,128.82,128.81,72.87724018]
[1726668194024,0.248373,128.82,128.81,88.72354382]
[1726668194453,0.248373,128.82,128.81,96.50454382]
[1726668194823,101.340273,128.86,128.85,71.316654]
[1726668195236,101.340273,128.86,128.85,72.86850148]
[1726668195629,101.340273,128.86,128.85,71.316654]
[1726668196350,101.340273,128.86,128.85,47.28879]
[1726668196550,101.340273,128.86,128.85,71.316654]
[1726668198127,7.45731897,128.86,128.85,72.86850427]
[1726668198841,7.45731897,128.86,128.85,79.097654]
[1726668201045,7.45731897,128.86,128.85,80.64895822]
[1726668201226,0.248373,128.9,128.89,127.49934382]
[1726668201424,0.248373,128.94,128.89,127.49934382]
[1726668201425,0.248373,128.94,128.89,101.89538597]
[1726668201625,0.248373,128.94,128.93,69.30794382]
[1726668201933,0.248373,128.94,128.93,51.909454]
[1726668203229,0.248373,128.94,128.93,53.4601849]
[1726668203431,0.248373,128.94,128.93,51.909454]
[1726668203635,14.2947,129.0,128.95,7.7548]
[1726668203636,0.2882763,128.99,128.95,7.7548]
[1726668203843,0.5232303,128.99,128.95,7.7548]
[1726668204042,0.5232303,128.99,128.94,20.93876489]
[1726668204223,0.5232303,128.99,128.95,0.12549]
[1726668204426,0.5232303,128.99,128.96,7.7542]
[1726668205348,0.5232303,128.99,128.97,27.1373]
[1726668205929,0.5232303,128.99,128.96,7.7542]
[1726668206124,0.5232303,128.99,128.95,27.88019]
[1726668206648,0.5232303,128.99,128.95,20.12549]
[1726668206852,6.2759303,128.99,128.95,20.12549]
[1726668207142,15.9912,129.01,128.94,20.12549]
[1726668207351,7.7519,129.0,128.95,7.7544]
[1726668207847,15.9912,129.01,128.97,7.7536]
[1726668208043,15.9912,129.01,128.97,19.3831]
[1726668208542,15.9912,129.01,128.97,27.1366]
[1726668209130,7.7511,129.02,128.97,27.1366]
[1726668209837,7.2511,129.02,128.97,27.1366]
[1726668211342,0.25098,129.02,128.94,19.3881]
[1726668211550,7.7525,128.99,128.94,27.1431]
[1726668211730,7.7533,128.98,128.94,19.3881]
[1726668211927,43.776884,129.01,128.94,19.3881]
[1726668212262,7.7527,128.99,128.94,27.1432]
[1726668213656,43.776884,129.01,128.95,7.87979]
[1726668213657,7.7523,129.0,128.95,7.87979]
[1726668213863,0.2882763,129.03,128.96,20.93556883]
[1726668214151,7.7513,129.01,128.97,7.7533]
[1726668214542,7.7509,129.02,128.97,7.7533]
[1726668214742,7.7509,129.02,128.97,9.30379125]
[1726668214944,0.2882763,129.03,128.98,27.1355]
[1726668214945,8.0384763,129.03,128.98,27.1355]
[1726668215445,0.2882763,129.03,129.0,7.7519]
[1726668215863,0.2882763,129.03,129.01,9.30135706]
[1726668216157,0.2882763,129.03,129.01,7.7511]
[1726668216361,0.2882763,129.03,129.02,7.7507]
[1726668216757,0.2882763,129.03,129.01,9.30112251]
[1726668217363,0.2882763,129.03,129.01,7.7511]
[1726668217561,0.2882763,129.03,129.0,19.3795]
[1726668217562,0.2882763,129.03,129.0,27.1312]
[1726668218064,0.2882763,129.03,129.01,9.30113519]
[1726668218465,0.2882763,129.03,129.02,9.30057489]
[1726668219562,0.2882763,129.03,129.02,7.7507]
[1726668219761,0.2882763,129.03,129.02,51.904054]
[1726668220966,0.2882763,129.03,129.02,53.45365085]
[1726668221472,0.2882763,129.03,129.02,51.904054]
[1726668224078,0.2882763,129.03,129.02,53.45359492]
[1726668224881,0.2882763,129.03,129.02,51.904054]
[1726668225672,0.2882763,129.03,129.02,53.45357225]
[1726668225877,0.2882763,129.03,129.02,51.904054]
[1726668226356,0.2882763,129.03,129.02,53.45357247]
[1726668228653,0.2882763,129.03,129.02,59.685054]
[1726668229257,0.2882763,129.03,129.02,61.23439829]
[1726668229858,0.2882763,129.03,129.02,53.45339829]
[1726668230270,0.2882763,129.03,129.02,61.23439829]
[1726668230778,0.2882763,129.03,129.02,51.904054]
[1726668232051,0.2882763,129.03,129.02,51.778564]
[1726668233269,0.2882763,129.03,129.02,53.32811395]
[1726668233478,0.2882763,129.03,129.02,53.45360395]
[1726668233667,0.2882763,129.03,129.02,51.904054]
[1726668235765,0.2882763,129.03,129.02,59.685054]
[1726668236383,0.2882763,129.03,129.02,51.904054]
[1726668236687,0.2882763,129.03,129.02,59.669054]
[1726668237284,0.2882763,129.03,129.02,61.21833308]
[1726668237578,0.2882763,129.03,129.02,59.669054]
[1726668239784,0.2882763,129.03,129.02,51.904054]
[1726668240565,0.2882763,129.03,129.02,7.7507]
[1726668241078,0.2882763,129.03,129.02,9.30036966]
[1726668241266,0.2882763,129.03,129.02,7.7507]
[1726668241482,0.2882763,129.03,129.0,19.3795]
[1726668241655,0.2882763,129.03,129.01,20.0]
[1726668241854,0.2882763,129.03,129.02,7.7507]
[1726668242081,0.2882763,129.03,129.02,27.7507]
[1726668242463,0.2882763,129.03,129.0,19.3795]
[1726668242782,0.2882763,129.03,129.01,7.751]
[1726668243277,0.2882763,129.03,129.0,19.3795]
[1726668243653,0.2882763,129.03,129.01,1.55007098]
[1726668243860,0.2882763,129.03,129.02,9.30071878]
[1726668244381,0.2882763,129.03,129.02,7.7507]
[1726668244567,0.2882763,129.03,129.02,8.12717]
[1726668246382,0.2882763,129.03,129.02,7.87619]
[1726668246587,0.2882763,129.03,129.02,28.12717]
[1726668246877,0.2882763,129.03,129.02,27.87619]
[1726668247280,0.2882763,129.03,129.02,28.12717]
[1726668247583,0.2882763,129.03,129.02,51.904054]
[1726668248084,0.2882763,129.03,129.02,53.45359179]
[1726668248465,0.2882763,129.03,129.02,70.85208161]
[1726668248659,0.2882763,129.03,129.02,109.60568161]
[1726668249888,0.2882763,129.03,129.02,117.37068161]
[1726668250270,0.2882763,129.03,129.02,109.60568161]
[1726668250966,0.2882763,129.03,129.02,51.904054]
[1726668251280,0.2882763,129.03,129.02,27.7507]
[1726668251471,0.2882763,129.03,129.02,29.30034655]
[1726668251975,0.2882763,129.03,129.02,46.69851069]
[1726668252177,0.2882763,129.03,129.02,55.9283032]
[1726668252586,0.2882763,129.03,129.02,79.9561672]
[1726668252900,0.2882763,129.03,129.02,86.29733633]
[1726668253069,0.2882763,129.03,129.02,78.53233633]
[1726668254174,0.2882763,129.03,129.02,77.06754382]
[1726668254882,7.63e-05,129.03,129.02,126.60023155]
[1726668255067,7.63e-05,129.03,129.02,125.05093633]
[1726668256292,7.63e-05,129.03,129.02,126.60018947]
[1726668256490,0.2882763,129.08,129.07,71.270354]
[1726668256678,0.2882763,129.08,129.07,72.81949877]
[1726668256879,0.2882763,129.08,129.07,72.81949924]
[1726668257192,0.2882763,129.08,129.07,71.270354]
[1726668257490,0.2882763,129.08,129.07,72.81945163]
[1726668258387,0.2882763,129.08,129.07,71.270354]
[1726668259086,0.2882763,129.08,129.07,47.117]
[1726668259395,0.2882763,129.08,129.07,48.66614696]
[1726668259396,7.63e-05,129.08,129.07,48.66614696]
[1726668259575,7.63e-05,129.08,129.07,47.117]
[1726668259996,7.63e-05,129.08,129.07,54.882]
[1726668260375,7.63e-05,129.08,129.07,79.035354]
[1726668261671,7.63e-05,129.08,129.07,55.13298]
[1726668261886,7.63e-05,129.08,129.07,34.882]
[1726668262372,7.63e-05,129.08,129.07,27.117]
[1726668263194,7.63e-05,129.08,129.07,7.7477]
[1726668263501,7.63e-05,129.08,129.06,34.8835]
[1726668263795,7.63e-05,129.08,129.06,7.765]
[1726668263972,7.7477,129.07,129.06,7.765]
[1726668264300,7.7485,129.06,129.04,7.765]
[1726668264497,85.9305,129.09,129.02,15.5156]
[1726668264698,7.7478,129.07,129.02,15.5156]
[1726668265475,7.7471,129.08,129.04,7.765]
[1726668265800,93.6772,129.09,129.04,15.5144]
[1726668265995,85.9305,129.09,129.05,7.7487]
[1726668266903,93.677,129.09,129.05,7.7487]
[1726668267278,7.7484,129.06,129.04,7.765]
[1726668267518,85.9305,129.09,129.04,7.765]
[1726668267804,7.7478,129.07,129.04,7.765]
[1726668267980,7.7472,129.08,129.04,7.765]
[1726668269899,85.9305,129.09,129.04,7.765]
[1726668269900,7.7477,129.07,129.04,7.765]
[1726668271010,7.7472,129.08,129.04,7.765]
[1726668271484,7.7477,129.07,129.04,7.765]
[1726668271683,7.7484,129.06,129.04,7.765]
[1726668272814,7.7495,129.05,129.04,7.765]
[1726668273014,23.776884,129.08,129.04,7.765]
[1726668273015,7.7483,129.06,129.04,7.765]
[1726668274009,24.0491,129.07,129.04,7.765]
[1726668274498,16.3014,129.07,129.04,15.5144]
[1726668275895,24.0491,129.07,129.04,7.765]
[1726668277895,16.3014,129.07,129.04,15.5145]
[1726668278594,7.7494,129.05,129.04,7.765]
[1726668278798,7.7485,129.06,129.04,7.765]
[1726668279011,1.55443922,129.05,128.99,0.1002476]
[1726668279313,7.7491,129.05,129.01,7.7513]
[1726668279983,16.3014,129.07,129.01,19.3781]
[1726668280183,24.0494,129.07,129.02,7.7504]
[1726668280416,9.30303922,129.06,129.02,7.7504]
[1726668280592,7.7489,129.05,129.01,27.1292]
[1726668281603,7.7502,129.03,128.99,7.8526476]
[1726668281809,16.3014,129.07,128.99,1.65055781]
[1726668282008,20.0,129.06,128.99,1.65055781]
[1726668282615,20.0,129.06,129.01,7.7509]
[1726668282616,7.7491,129.05,129.01,7.7509]
[1726668283613,7.7496,129.04,129.0,27.1313]
[1726668285109,7.7496,129.04,128.99,0.1002476]
[1726668285110,20.0,129.04,128.99,0.1002476]
[1726668285414,1.55443922,129.03,128.99,0.1002476]
[1726668285593,13.7926,129.0,128.99,0.1002476]
[1726668286189,37.569484,129.0,128.99,0.1002476]
[1726668286413,37.569484,129.0,128.95,0.282675]
[1726668286414,7.7539,128.97,128.95,0.282675]
[1726668287087,7.7532,128.98,128.95,0.282675]
[1726668288203,7.7538,128.97,128.95,0.282675]
[1726668288418,7.7533,128.98,128.95,0.282675]
[1726668288638,7.7527,128.99,128.95,0.282675]
[1726668289708,7.7531,128.98,128.95,0.282675]
[1726668294021,7.7539,128.97,128.95,0.282675]
[1726668294238,7.7543,128.96,128.95,0.282675]
[1726668294609,7.7539,128.97,128.95,0.282675]
[1726668295729,7.7543,128.96,128.95,0.282675]
[1726668297426,7.7539,128.97,128.95,0.282675]
[1726668298225,7.7543,128.96,128.95,0.282675]
[1726668299032,20.0,128.98,128.95,0.282675]
[1726668299249,27.7532,128.98,128.95,0.282675]
[1726668300708,20.0,128.98,128.96,7.7541]
[1726668300911,20.0,128.99,128.96,19.3856]
[1726668301216,1.55443922,128.98,128.95,0.282675]
[1726668301410,20.0,128.99,128.95,0.282675]
[1726668302412,7.7535,128.98,128.95,0.282675]
[1726668303120,9.30823922,128.97,128.95,0.282675]
[1726668303327,7.7543,128.96,128.95,0.282675]
[1726668304035,27.7543,128.96,128.95,0.282675]
[1726668304216,29.30873922,128.96,128.95,0.282675]
[1726668304535,53.08562322,128.96,128.95,0.282675]
[1726668304716,7.7558,128.94,128.91,0.282675]
[1726668304916,1.55443922,128.93,128.91,0.282675]
[1726668305130,7.7558,128.94,128.91,0.282675]
[1726668305435,51.531584,128.96,128.91,8.039775]
[1726668305815,27.7547,128.96,128.92,7.7567]
[1726668306021,20.0,128.99,128.93,7.756]
[1726668306220,20.0,128.97,128.93,7.756]
[1726668306532,20.0,128.97,128.93,27.1459]
[1726668307044,27.7539,128.97,128.93,27.1459]
[1726668308241,20.0,128.99,128.93,19.3899]
[1726668308415,20.0,128.96,128.93,27.1458]
[1726668308823,7.755,128.95,128.91,0.282675]
[1726668310052,7.755,128.95,128.91,8.039675]
[1726668310244,7.7545,128.96,128.92,7.7566]
[1726668312353,7.7538,128.97,128.93,7.7561]
[1726668312750,20.0,128.96,128.93,7.7561]
[1726668315633,27.7545,128.96,128.92,27.1478]
[1726668317836,27.7545,128.96,128.92,27.1477]
[1726668318158,7.7557,128.94,128.91,8.039975]
[1726668318538,7.7557,128.94,128.91,0.282675]
[1726668318738,1.55443922,128.93,128.91,0.282675]
[1726668318932,9.31063922,128.93,128.91,0.282675]
[1726668319142,19.3829,128.98,128.91,0.282675]
[1726668319143,9.31113922,128.92,128.91,0.282675]
[1726668319341,7.7565,128.93,128.91,0.282675]
[1726668320460,7.7567,128.92,128.91,0.282675]
[1726668320673,9.31113922,128.92,128.91,0.282675]
[1726668320955,7.7567,128.92,128.91,0.282675]
[1726668321332,7.7562,128.93,128.91,0.282675]
[1726668321748,7.7567,128.92,128.91,0.282675]
[1726668322336,7.7562,128.93,128.91,0.282675]
[1726668322654,36.1463,128.95,128.91,0.282675]
[1726668322856,19.3823,128.99,128.91,0.282675]
[1726668322857,7.7545,128.96,128.91,0.282675]
[1726668323151,20.0,128.95,128.91,0.282675]
[1726668323339,27.755,128.95,128.91,0.282675]
[1726668323539,21.0486,129.0,128.92,19.51699]
[1726668323752,7.7535,128.98,128.93,9.30656954]
[1726668323971,7.7535,128.98,128.94,7.7554]
[1726668324278,9.30813922,128.97,128.93,7.7559]
[1726668324458,7.7547,128.96,128.92,27.148]
[1726668324628,40.4288,129.0,128.92,19.3915]
[1726668324629,9.30953922,128.95,128.92,19.3915]
[1726668324830,40.4288,129.0,128.92,19.3915]
[1726668324831,19.3831,128.98,128.92,0.20399]
[1726668325033,7.7556,128.94,128.92,0.20399]
[1726668325958,9.31053922,128.93,128.92,0.20399]
[1726668326163,7.7556,128.94,128.92,0.20399]
[1726668327645,7.7561,128.93,128.92,0.20399]
[1726668329267,27.7561,128.93,128.92,0.20399]
[1726668331651,29.31053922,128.93,128.92,0.20399]
[1726668331871,7.7579,128.9,128.88,0.2619115]
[1726668332171,9.31293922,128.89,128.88,0.2619115]
[1726668333167,7.7585,128.89,128.88,0.2619115]
[1726668333345,27.7585,128.89,128.88,0.2619115]
[1726668333550,51.660874,128.89,128.88,0.2619115]
[1726668333941,7.7609,128.85,128.84,8.0269115]
[1726668334147,7.7605,128.86,128.84,8.0269115]
[1726668334676,7.7609,128.85,128.84,8.0269115]
[1726668335961,27.7609,128.85,128.84,8.0269115]
[1726668336163,51.537784,128.85,128.84,8.0269115]
[1726668336547,51.537784,128.85,128.84,0.2619115]
[1726668336761,51.537784,128.85,128.8,8.0269115]
[1726668336762,7.7629,128.82,128.8,8.0269115]
[1726668336970,1.55443922,128.81,128.8,8.0269115]
[1726668337144,9.31773922,128.81,128.8,8.0269115]
[1726668337348,7.7633,128.81,128.8,8.0269115]
[1726668337565,7.7633,128.81,128.8,0.2619115]
[1726668338369,7.7633,128.81,128.76,8.0281115]
[1726668338370,27.7644,128.8,128.76,0.2619115]
[1726668338674,9.31923922,128.79,128.76,0.2619115]
[1726668338884,20.0,128.8,128.76,0.2619115]
[1726668338885,33.09652322,128.78,128.76,0.2619115]
[1726668339174,7.7657,128.77,128.76,0.2619115]
[1726668339345,20.12549,128.8,128.76,0.2619115]
[1726668339550,7.765,128.79,128.76,0.2619115]
[1726668339778,20.0,128.78,128.76,0.2619115]
[1726668339955,20.0,128.78,128.76,0.1814032]
[1726668340348,1.55443922,128.77,128.76,0.1814032]
[1726668340764,7.7653,128.78,128.76,0.1814032]
[1726668340976,0.12549,128.8,128.76,0.1814032]
[1726668340977,9.32013922,128.77,128.76,0.1814032]
[1726668341166,29.32013922,128.77,128.76,0.1814032]
[1726668341773,20.0,128.77,128.76,0.1814032]
[1726668342166,27.7657,128.77,128.76,0.1814032]
[1726668343677,20.0,128.77,128.76,0.1814032]
[1726668344050,7.7653,128.78,128.76,0.1814032]
[1726668344477,29.32013922,128.77,128.76,0.1814032]
[1726668344655,27.7657,128.77,128.76,0.1814032]
[1726668345753,27.7657,128.77,128.72,7.765]
[1726668345754,23.776884,128.76,128.72,7.765]
[1726668345954,43.776884,128.77,128.72,7.765]
[1726668346389,7.7665,128.76,128.72,7.765]
[1726668347255,7.7665,128.76,128.7,8.1712721]
[1726668347256,1.55443922,128.75,128.7,8.1712721]
[1726668347489,7.7682,128.73,128.7,8.1712721]
[1726668348074,7.7689,128.72,128.7,8.1712721]
[1726668348275,7.7683,128.73,128.71,7.765]
[1726668348980,7.7688,128.72,128.71,7.765]
[1726668349173,7.7688,128.72,128.7,0.4062721]
[1726668349371,7.7694,128.71,128.7,0.4062721]
[1726668349756,7.7689,128.72,128.7,0.4062721]
[1726668350082,1.55443922,128.71,128.7,0.4062721]
[1726668350281,9.32383922,128.71,128.7,0.4062721]
[1726668350595,29.32383922,128.71,128.7,0.4062721]
[1726668351092,27.7694,128.71,128.7,0.4062721]
[1726668351270,51.546284,128.71,128.7,8.1712721]
[1726668351882,51.671774,128.71,128.7,0.4062721]
[1726668352376,59.75409322,128.71,128.7,0.4062721]
[1726668352588,44.153354,128.7,128.64,0.4062721]
[1726668352779,7.7723,128.67,128.64,0.4062721]
[1726668353095,16.79647,128.7,128.64,0.4062721]
[1726668353096,20.0,128.65,128.64,0.4062721]
[1726668354389,27.773,128.65,128.64,0.4062721]
[1726668354982,51.675374,128.65,128.64,0.4062721]
[1726668355157,51.675374,128.65,128.61,7.765]
[1726668355158,44.153354,128.65,128.61,7.765]
[1726668355357,44.153354,128.65,128.58,0.4062721]
[1726668355358,20.0,128.62,128.58,0.4062721]
[1726668355584,1.55443922,128.61,128.58,0.4062721]
[1726668355793,27.7749,128.62,128.58,0.4062721]
[1726668356083,20.0,128.62,128.59,19.4405]
[1726668357885,1.55443922,128.67,128.59,19.4405]
[1726668357886,27.7718,128.67,128.59,19.4405]
[1726668358059,16.42,128.7,128.6,7.776]
[1726668358259,7.7731,128.65,128.59,27.217]
[1726668358862,37.40063922,128.7,128.58,0.4062721]
[1726668358863,31.89577008,128.68,128.58,0.4062721]
[1726668359190,24.027864,128.64,128.58,0.4062721]
[1726668359485,7.7755,128.61,128.58,0.4062721]
[1726668359683,29.33083922,128.6,128.58,0.4062721]
[1726668360166,20.0,128.6,128.58,0.4062721]
[1726668360480,24.153354,128.64,128.58,0.4062721]
[1726668360481,20.0,128.62,128.58,8.1834721]
[1726668360686,20.0,128.63,128.58,8.1834721]
[1726668361184,20.0,128.63,128.58,0.4062721]
[1726668361385,20.0,128.63,128.58,19.8490721]
[1726668361883,20.0,128.63,128.58,27.6257721]
[1726668362385,20.0,128.63,128.59,7.7765]
[1726668362589,0.12549,128.65,128.58,0.4062721]
[1726668362822,12.46687008,128.68,128.65,7.7728]
[1726668363087,12.46687008,128.68,128.64,7.7731]
[1726668363477,12.46687008,128.68,128.63,19.4348]
[1726668363684,12.46687008,128.68,128.65,7.7729]
[1726668363869,6.1663,128.72,128.65,19.4319]
[1726668364064,7.7706,128.69,128.64,7.7734]
[1726668364261,7.7725,128.66,128.61,7.7753]
[1726668364780,20.0,128.68,128.59,15.9487]
[1726668364966,24.027864,128.69,128.61,19.438]
[1726668365374,7.7724,128.66,128.61,27.2133]
[1726668365789,24.027864,128.69,128.63,7.7742]
[1726668366073,7.7725,128.66,128.61,19.438]
[1726668366488,7.773,128.65,128.61,19.438]
[1726668366812,7.773,128.65,128.6,7.7759]
[1726668367169,0.12549,128.68,128.62,19.4365]
[1726668367571,7.7728,128.66,128.62,19.4365]
[1726668367789,7.7718,128.67,128.62,27.2112]
[1726668368900,24.027864,128.69,128.62,19.4365]
[1726668369268,7.7728,128.66,128.62,19.4365]
[1726668369596,7.7746,128.63,128.59,35.3894]
[1726668369891,0.12549,128.67,128.61,7.7753]
[1726668369892,7.7731,128.65,128.61,7.7753]
[1726668370096,7.7731,128.65,128.59,36.94430908]
[1726668370503,7.7738,128.64,128.59,36.94430908]
[1726668370791,7.7738,128.64,128.59,43.1655]
[1726668370998,7.7738,128.64,128.59,27.2168]
[1726668371169,7.7742,128.63,128.59,19.4407]
[1726668371373,0.12549,128.66,128.58,0.4062721]
[1726668371374,19.68238,128.66,128.58,0.4062721]
[1726668371694,7.775,128.62,128.58,0.4062721]
[1726668372293,7.7743,128.63,128.58,8.1832721]
[1726668372681,7.7736,128.64,128.59,7.7765]
[1726668372888,7.7736,128.64,128.6,7.7758]
[1726668373103,7.7736,128.64,128.58,19.8489721]
[1726668373304,7.7743,128.63,128.58,19.8489721]
[1726668373893,7.7738,128.64,128.59,9.3316232]
[1726668374077,7.7738,128.64,128.59,7.7765]
[1726668374277,7.7726,128.66,128.62,7.7747]
[1726668374519,7.7726,128.66,128.61,7.7752]
[1726668374686,7.7726,128.66,128.61,9.33015257]
[1726668375001,47.66017548,128.7,128.62,19.4366]
[1726668375304,7.7718,128.67,128.63,7.7738]
[1726668375607,6.1663,128.72,128.62,19.4366]
[1726668375608,7.7714,128.68,128.62,19.4366]
[1726668375779,7.7714,128.68,128.63,7.7738]
[1726668375979,7.7719,128.67,128.63,7.7738]
[1726668376179,7.7707,128.69,128.64,19.4337]
[1726668376384,7.7695,128.71,128.66,7.7722]
[1726668376698,34.6989,128.74,128.67,7.7718]
[1726668376879,15.2789,128.74,128.66,19.4302]
[1726668377081,7.7671,128.75,128.7,7.7699]
[1726668377293,20.12122474,128.76,128.71,7.7693]
[1726668377606,7.7653,128.78,128.72,7.7682]
[1726668377778,6.1218,128.79,128.7,19.4238]
[1726668377986,6.1218,128.79,128.67,19.4287]
[1726668378201,6.1218,128.79,128.68,20.0]
[1726668378409,7.7669,128.75,128.7,7.7698]
[1726668378616,6.1218,128.79,128.71,19.4227]
[1726668378800,19.4139,128.78,128.7,6.6006]
[1726668379178,6.1218,128.79,128.7,27.57837231]
[1726668379391,6.1218,128.79,128.71,0.12549]
[1726668379686,7.7656,128.78,128.73,7.7681]
[1726668379880,0.4062721,128.8,128.74,1.55263993]
[1726668380180,0.4062721,128.8,128.74,0.12549]
[1726668380397,8.1702721,128.8,128.76,19.4145]
[1726668380686,7.7646,128.79,128.74,0.12549]
[1726668380993,0.4062721,128.8,128.73,19.4199]
[1726668380994,7.766,128.77,128.73,19.4199]
[1726668381304,7.7652,128.78,128.73,20.97330316]
[1726668381496,7.7659,128.77,128.73,19.4199]
[1726668381884,24.153354,128.79,128.7,26.0251]